Cogmind - Beta 16 @@@ ROGUE MODE // 2025.11.14 @ 01:02:17 Player: AlcoholicAardvark Result: Destroyed by S-10 Pest with Light Assault Rifle Performance ------------- Evolutions (0) 0 Regions Visited (4) 800 Robots Destroyed (11) 55 Value Destroyed (310) 310 Prototype IDs (23) 460 Alien Tech Used (0) 0 Bonus (300) 300 TOTAL SCORE: 1925 Bonus ------- Aligned with FarCom 300 Cogmind --------- Core Integrity 0/250 Matter 180/300 Energy 250/250 System Corruption 13% Temperature Cool (0) Movement Core (450) Ox8 Location -9/Mines Parts ------- > --- POWER (1) -------- Ion Engine > --- PROPULSION (2) --- (None) > --- UTILITY (2) ------ Large Storage Unit > --- WEAPON (2) ------- Light Assault Rifle > --- INVENTORY (15) --- Ion Engine Light Ion Engine Improved Hover Unit Flying Fortress v7 Improved Trap Extractor (0/6) Peak State ------------ > --- POWER ------------ Light Deuterium Engine > --- PROPULSION ------- Improved Hover Unit Flight Unit > --- UTILITY ---------- Large Storage Unit Hardlight Generator > --- WEAPON ----------- Small Laser Improved Grenade Launcher > --- INVENTORY -------- Ion Engine Ion Engine Light Ion Engine Light Treads Flying Fortress v7 Improved Trap Extractor Light Assault Rifle [Rating: 18] Favorites ----------- Power Ion Engine Engine Ion Engine Propulsion Light Treads Treads Light Treads Hover Unit Improved Hover Unit Flight Unit Flight Unit Utility Large Storage Unit Device Hardlight Generator Storage Large Storage Unit Weapon Small Laser Energy Gun Small Laser Ballistic Gun Light Assault Rifle Launcher Improved Grenade Launcher Build | -11 -10 -10 -10 -9 ------- Run | Yrd Mat Min Exi Min Slots Evolved . | . . . . . Power . | . . . . . Propulsion . | . . . . . Utility . | . . . . . Weapon . | . . . . . Parts Attached 17 | 6 2 7 . 2 Power 5 | 2 . 2 . 1 Engine 5 | 2 . 2 . 1 Core . | . . . . . Reactor . | . . . . . Propulsion 4 | 2 . 1 . 1 Treads 2 | 2 . . . . Leg . | . . . . . Wheel . | . . . . . Hover 1 | . . . . 1 Flight 1 | . . 1 . . Utility 3 | . 1 2 . . Device 2 | . . 2 . . Storage 1 | . 1 . . . Processor . | . . . . . Hackware . | . . . . . Protection . | . . . . . Artifact . | . . . . . Weapon 5 | 2 1 2 . . Energy Gun 1 | 1 . . . . Energy Cannon . | . . . . . Ballistic Gun 3 | 1 1 1 . . Ballistic Cannon . | . . . . . Launcher 1 | . . 1 . . Special Weapon . | . . . . . Impact Weapon . | . . . . . Slashing Weapon . | . . . . . Piercing Weapon . | . . . . . Special Melee Weapon . | . . . . . Unidentified Prototypes . | . . . . . Parts Lost 7 | . 1 . . 6 Power 1 | . . . . 1 Propulsion 2 | . . . . 2 Utility 1 | . . . . 1 Weapon 3 | . 1 . . 2 Highest Loss Streak 3 | . 1 . . 3 To Critical Strikes . | . . . . . Average Backups 4 | . 2 3 5 6 Power 2 | . 1 2 3 2 Propulsion 1 | . . . . 1 Utility . | . . . 1 1 Weapon . | . . . 1 . Tool/Special . | . . . . . Unused Backups 1 | . . . . 1 Power . | . . . . . Propulsion 1 | . . . . 1 Utility . | . . . . . Weapon . | . . . . . Tool/Special . | . . . . . Average Slot Usage (%) 74 | . 82 65 99 65 Engine 13 | . 14 13 14 13 Treads 11 | . 27 14 13 5 Flight 6 | . . 6 14 5 Device 10 | . . 4 14 13 Storage 13 | . 12 14 14 14 Energy Gun 7 | . 3 6 14 5 Ballistic Gun 4 | . 23 2 . . Launcher 6 | . . 3 14 5 Peak Build Rating 18 | 5 6 13 17 18 Average Rating 10 | 4 5 6 15 12 On Entrance 7 | . 5 3 13 17 Avg Prop Armor Cover (%) 3 | . . 3 3 3 Naked Turns . | . . . . . Heaviest Build 37 | 7 27 37 37 37 Greatest Support 40 | 40 40 20 20 20 Greatest Overweight (x) 12 | . 1 1 12 12 Average Overweight (x) 2 | . . 1 1 4 Largest Inventory Capacity 15 | 5 15 15 15 15 Average Capacity 14 | 5 14 15 15 15 Most Carried 11 | 1 3 5 10 11 Average Carried 6 | . 2 3 7 9 Final Capacity 15 | 5 15 15 15 15 Final Carried 9 | 1 3 5 9 8 Class Distribution -------------------- 100% | Mutant Dominant Class ---------------- Mutant | -10/Materials Mutant | -10/Mines Mutant | -10/Exiles Mutant | -9/Mines Resources | -11 -10 -10 -10 -9 ----------- Run | Yrd Mat Min Exi Min Matter Collected 434 | 191 123 78 . 42 Remotely . | . . . . . Salvage Created 311 | . 205 38 . 68 Parts 23 | . 15 4 . 4 Haulers Intercepted . | . . . . . Recyclers Shooed 1 | . . 1 . . Parts Field Recycled . | . . . . . Retrieved Matter . | . . . . . Parts Self-Destructed . | . . . . . Prevented . | . . . . . Parts Restored . | . . . . . Kills | -11 -10 -10 -10 -9 ------- Run | Yrd Mat Min Exi Min Combat Hostiles Destroyed 10 | . 5 2 . 3 Guns 7 | . 5 2 . . AOE 3 | . . . . 3 Classes Destroyed 3 | . 1 1 . 1 Builder 1 | . . . . 1 Swarmer 2 | . . 2 . . Grunt 8 | . 5 . . 3 Best Kill Streak 4 | . 2 2 . 4 Combat Bots Only 3 | . 2 2 . 3 Max Kills in Single Turn 1 | . 1 1 . 1 Gunslinging . | . . . . . Exploded 1 | . . . . 1 Melee . | . . . . . Uniques/NPCs Destroyed . | . . . . . Combat | -11 -10 -10 -10 -9 -------- Run | Yrd Mat Min Exi Min Hostile Shots Fired 120 | . 48 19 . 53 Missed 32 | . 9 3 . 20 Hits 88 | . 39 16 . 33 Projectile 88 | . 39 16 . 33 Critical Strikes 2 | . . . . 2 Damage Taken 1223 | . 421 160 . 642 Core 255 | . 40 55 . 160 Absorbed by Shields 24 | . . . . 24 Core Remaining (%) 100 | 100 . . . . Volleys Fired 31 | . 21 5 . 5 Largest 2 | . 2 1 . 2 Hottest 76 | . 40 40 . 76 Shots Fired 57 | . 42 5 . 10 Gun 52 | . 42 5 . 5 Cannon . | . . . . . Launcher 5 | . . . . 5 Special . | . . . . . Kinetic 42 | . 42 . . . Thermal 10 | . . 5 . 5 Explosive 5 | . . . . 5 Electromagnetic . | . . . . . Robot Hit Streak 10 | . 10 1 . 3 Robot Miss Streak 2 | . 2 2 . 2 Penetration Max . | . . . . . Secondary Targets . | . . . . . Shots Hit Robots 35 | . 27 2 . 6 Core Hits 23 | . 13 3 . 7 Critical Kills . | . . . . . Critical Parts Destroyed . | . . . . . Critical Strikes . | . . . . . Melee Attacks . | . . . . . Impact . | . . . . . Slashing . | . . . . . Piercing . | . . . . . Sneak Attacks . | . . . . . Combat Hostiles . | . . . . . Follow-up Attacks . | . . . . . Damage Inflicted 717 | . 247 34 . 436 Guns 283 | . 228 34 . 21 Cannons . | . . . . . Explosions 415 | . . . . 415 Melee . | . . . . . Ramming 19 | . 19 . . . Kinetic 228 | . 228 . . . Thermal 55 | . . 34 . 21 Explosive 415 | . . . . 415 Electromagnetic . | . . . . . Impact . | . . . . . Slashing . | . . . . . Piercing . | . . . . . Highest Corruption 13 | . . . . 13 Average Corruption 13 | . . . . 13 Corruption Purged . | . . . . . Corruption Blocked . | . . . . . Effects 33 | . . . . 33 Message Errors 11 | . . . . 11 Matter Fused 9 | . . . . 9 Heat Flow Errors 2 | . . . . 2 Energy Discharges 6 | . . . . 6 Data Loss (minor) 2 | . . . . 2 Data Loss (major) 3 | . . . . 3 Overload Shots . | . . . . . Overflow Damage 12 | . . . . 12 Projectiles . | . . . . . Explosions 12 | . . . . 12 Melee . | . . . . . Knockbacks . | . . . . . Impact . | . . . . . Kinetic . | . . . . . Secondary . | . . . . . Self-Inflicted Damage 72 | . . . . 72 Shots 3 | . . . . 3 Rammed 5 | . 5 . . . Targets Rammed 5 | . 5 . . . Kicked . | . . . . . Crushed . | . . . . . Highest Temperature 192 | . 18 . . 192 Average Temperature 51 | . 9 . . 80 Received Heat Transfer 224 | . 183 . . 41 Siege Activations . | . . . . . Martial Activations . | . . . . . Shielding Activations . | . . . . . Robots Disrupted . | . . . . . Combat Hostiles . | . . . . . Robots Corrupted . | . . . . . Combat Hostiles . | . . . . . Parts Fried . | . . . . . Impact Corruptions . | . . . . . Robots Melted . | . . . . . Combat Hostiles . | . . . . . Parts Melted . | . . . . . Heat Transferred 125 | . . 75 . 50 Parts Sabotaged . | . . . . . Parts Stolen . | . . . . . Parts Stripped . | . . . . . Power Chain Reactions . | . . . . . Alert | -11 -10 -10 -10 -9 ------- Run | Yrd Mat Min Exi Min Maximum Alert Level . | . . . . . Low Security (%) 100 | 100 100 100 . 100 Level 1 . | . . . . . Level 2 . | . . . . . Level 3 . | . . . . . Level 4 . | . . . . . Level 5 . | . . . . . High Security . | . . . . . Max Security . | . . . . . Peak Influence 80 | . 80 40 . 79 Initial 16 | . . 16 . . Average 6 | . 25 4 . 3 Influence Increases 317 | . 160 50 . 107 Destroy 0b10 Robot/C 200 | . 100 40 . 60 Destroy 0b10 Robot/NC 5 | . . . . 5 Destroy Leader 50 | . 30 10 . 10 Destroy Structure 32 | . . . . 32 Lose Combat Pursuer 30 | . 30 . . . Influence Decreases 317 | . 116 94 . 107 Entered New Map 28 | . . 28 . . Time Decay 229 | . 106 66 . 57 Lost Part 60 | . 10 . . 50 Squads Dispatched 5 | . 5 . . . Investigation 2 | . 2 . . . Extermination . | . . . . . Reinforcement 3 | . 3 . . . Assault . | . . . . . Garrison . | . . . . . Intercept . | . . . . . Searches Triggered . | . . . . . Construction Impeded . | . . . . . Haulers Reinforced . | . . . . . Active Scanning Responses . | . . . . . Cargo Convoy Interrupts . | . . . . . Stealth | -11 -10 -10 -10 -9 --------- Run | Yrd Mat Min Exi Min Distress Signals 1 | . 1 . . . Communications Jammed . | . . . . . Distress Signals . | . . . . . Times Spotted 24 | . 15 3 . 6 Peak Tracking Total 4 | . 4 3 . 3 Tactical Retreats 2 | . 2 . . . Traps | -11 -10 -10 -10 -9 ------- Run | Yrd Mat Min Exi Min Traps Triggered 5 | . 3 2 . . Indirectly . | . . . . . Trap Hack Attempts . | . . . . . Triggered . | . . . . . Disarmed . | . . . . . Reprogrammed . | . . . . . Reused . | . . . . . Traps Extracted . | . . . . . Installed . | . . . . . Triggered . | . . . . . Machines | -11 -10 -10 -10 -9 ---------- Run | Yrd Mat Min Exi Min Machines Disabled . | . . . . . Max in Single Turn . | . . . . . Machines Repaired . | . . . . . Machines Dismantled . | . . . . . Machines Sabotaged . | . . . . . Overloaded Fab Kills . | . . . . . Hacking | -11 -10 -10 -10 -9 --------- Run | Yrd Mat Min Exi Min Machines Accessed 4 | . 2 1 1 . Terminals 2 | . 2 . . . Fabricators . | . . . . . Repair Stations . | . . . . . Recycling Units . | . . . . . Scanalyzers . | . . . . . Garrison Access . | . . . . . Total Hacks 9 | . 7 1 1 . Successful 3 | . 1 1 1 . Failed 6 | . 6 . . . Catastrophic 1 | . 1 . . . Database Lockouts . | . . . . . Manual 4 | . 3 . 1 . Terminals 7 | . 7 . . . Fabricators . | . . . . . Repair Stations . | . . . . . Recycling Units . | . . . . . Scanalyzers . | . . . . . Garrison Access . | . . . . . Terminal Hacks 3 | . 1 1 1 . Record 1 | . 1 . . . Open Door 1 | . . 1 . . Proto ID Catalog 1 | . . . 1 . Fabricator Hacks . | . . . . . Repair Station Hacks . | . . . . . Recycling Unit Hacks . | . . . . . Scanalyzer . | . . . . . Garrison Access Hacks . | . . . . . Unauthorized Hacks . | . . . . . Terminals . | . . . . . Fabricators . | . . . . . Repair Stations . | . . . . . Recycling Units . | . . . . . Scanalyzers . | . . . . . Garrison Access . | . . . . . Data Cores Recovered . | . . . . . Used . | . . . . . Hacking Detections 2 | . 2 . . . Full Trace Events 1 | . 1 . . . Feedback Events . | . . . . . Feedback Blocked . | . . . . . Robot Schematics Acquired . | . . . . . Robots Built . | . . . . . Authchips . | . . . . . Time . | . . . . . Total Robot Build Rating . | . . . . . Part Schematics Acquired . | . . . . . Parts Built . | . . . . . Authchips . | . . . . . Time . | . . . . . Total Part Build Rating . | . . . . . Part Studies Acquired . | . . . . . Parts Repaired . | . . . . . Time . | . . . . . Parts Recycled . | . . . . . Recycled Matter . | . . . . . Retrieved Matter . | . . . . . Retrieved Components . | . . . . . Parts Scanalyzed . | . . . . . Part Schematics Acquired . | . . . . . Parts Damaged . | . . . . . Bothacking | -11 -10 -10 -10 -9 ------------ Run | Yrd Mat Min Exi Min Used RIF Installer . | . . . . . Robots Hacked . | . . . . . Non-combat . | . . . . . Combat . | . . . . . Robot Hacks Applied . | . . . . . Relay Couplers Released . | . . . . . Fabnet Peak Effective % . | . . . . . Robots Rewired . | . . . . . Allies Hacked . | . . . . . Hacks Repelled . | . . . . . Allies | -11 -10 -10 -10 -9 -------- Run | Yrd Mat Min Exi Min Total Allies . | . . . . . Largest Group . | . . . . . Highest-Rated Group . | . . . . . Highest-Rated Ally . | . . . . . Total Orders . | . . . . . Ally Attacks . | . . . . . Total Damage . | . . . . . Kills . | . . . . . Allies Corrupted . | . . . . . Allies Melted . | . . . . . Intel | -11 -10 -10 -10 -9 ------- Run | Yrd Mat Min Exi Min Active Infowar (turns) . | . . . . . Robot Analysis Total . | . . . . . Derelict Logs Recovered 2 | . . . . 2 Drone Launches . | . . . . . Drone Recoveries . | . . . . . Exploration | -11 -10 -10 -10 -9 ------------- Run | Yrd Mat Min Exi Min Turns Passed 3263 | 84 435 559 644 1541 Spaces Moved 1129 | 53 193 204 263 416 Core 193 | 8 . . 3 182 Treads 936 | 45 193 204 260 234 Legs . | . . . . . Wheels . | . . . . . Hover . | . . . . . Flight . | . . . . . Fastest Speed 50 | 50 160 240 240 240 Average Speed 266 | 143 162 240 244 356 Slowest Speed 650 | 160 240 240 650 650 Overloaded Moves . | . . . . . Propulsion Burnouts . | . . . . . Robots Hopped . | . . . . . Potential Cave-ins 6 | . . 1 . 5 Cave-ins Triggered 1 | . . . . 1 Exploration Rate (%) 46 | 4 34 53 65 74 Regions Visited 4 Branch Regions 3 Pre-discovered Areas 1 | . . . . 1 Known Exits Taken . | . . . . . Unknown Exits Taken 4 | 1 1 1 1 . Scrap Searched 2 | . . . . 2 Spaces Dug . | . . . . . Terrain Destroyed 59 | . . . . 59 Melee . | . . . . . Projectile . | . . . . . AOE 59 | . . . . 59 Terrain Rammed . | . . . . . Walls Destroyed . | . . . . . Machines Disabled . | . . . . . Actions | -11 -10 -10 -10 -9 --------- Run | Yrd Mat Min Exi Min Total 1329 | 58 277 266 265 463 Wait 139 | . 55 48 . 36 Move 1124 | 52 192 203 262 415 Hop . | . . . . . Pick Up 5 | . 2 1 1 1 Fast Attach 11 | 5 1 5 . . Attach 5 | . . 1 1 3 Detach 3 | . . 1 1 1 Swap 5 | 1 1 2 . 1 Drop . | . . . . . Fire 31 | . 21 5 . 5 Melee . | . . . . . Ram . | . . . . . Kick . | . . . . . Crush 5 | . 5 . . . Escape Stasis 1 | . . . . 1 Rewire . | . . . . . Trap . | . . . . . Miscellaneous . | . . . . . Route ------- -11/Scrapyard -10/Materials -10/Mines (discovered 2 exits: *Exi / [*Sub]) -10/Exiles -9/Mines History --------- Turn | Location | Event 10 | -11/Scrapyard | Discovered new exit (range 16) 85 | -11/Scrapyard | Entered Materials 306 | -10/Materials | Build established: Mutant 474 | -10/Materials | Discovered new exit (range 13) 520 | -10/Materials | Entered Mines 537 | -10/Mines | Met a Derelict bent on vengeance 626 | -10/Mines | Discovered new exit (range 13) 849 | -10/Mines | Met a Derelict who couldn't figure out how to use a Trap Extractor 996 | -10/Mines | Assembled infested the area 1038 | -10/Mines | Met 8R-AWN 1074 | -10/Mines | Discovered new exit (range 2) 1079 | -10/Mines | Entered Exiles 1139 | -10/Exiles | Welcomed by 8R-AWN 1180 | -10/Exiles | Met EX-HEX 1250 | -10/Exiles | Met EX-BIN 1283 | -10/Exiles | Aligned with FarCom system 1286 | -10/Exiles | Given EX-Vault access code 1358 | -10/Exiles | Opened EX-Vault 1370 | -10/Exiles | Found Prototype Flight Unit 1413 | -10/Exiles | Identified Flying Fortress v7 1464 | -10/Exiles | Warned to stay clear of 0b10 Research branches 1536 | -10/Exiles | Met EX-DEC 1697 | -10/Exiles | Discovered new exit (range 12) 1723 | -10/Exiles | Left Exiles lab with Flying Fortress v7 1723 | -10/Exiles | Entered Mines 1733 | -9/Mines | Learned location of Zion (-7) 2175 | -9/Mines | Learned Materials stockpile data 2353 | -9/Mines | Crushed by falling debris 2354 | -9/Mines | Core integrity fell below 50% 2354 | -9/Mines | System corruption reached 10% 2384 | -9/Mines | Lost 3 parts (1p2w) 3253 | -9/Mines | Core integrity fell below 20% 3264 | -9/Mines | Destroyed by S-10 Pest with Light Assault Rifle Last Messages --------------- System corrupted: Energy discharge (-50). YP<:VGDD,LO7228CQH JJMBSE2F NQOT>HK System corrupted: Substantial component data lost. System corrupted: Matter fused (-7). K-01 Serf cleans the Plasma Injector. System corrupted: Matter fused (-8). K-01 Serf cleans the Plasma Injector. System corrupted: Substantial component data lost. K-01 Serf cleans the Plasma Injector. NAWYXKUR4VY R&KSAU SZ CDLXE=FBHPJGEY7UV0 K-01 Serf cleans the Plasma Injector. C-30 ARC bursts open, deploying its payload. S-10 Pest unfolds itself. Hardlight Generator destroyed. K-01 Serf collects debris. K-01 Serf cleans the Plasma Injector. System corrupted: Matter fused (-9). K-01 Serf cleans the Plasma Injector. Map ----- +----------------------------------------------------+ | ## #???### % ##### #?# | | # #??## ] #???## ######### | | # ##??# ##### ## ##????####???### # | | ##?## #### #????????????# # | | ### #??## #????????????# # | | ###### #???# #???????????###### | | ##??## #???## ##???????????# # | | ### #???## #????####????????????# # ## | | ##?## #????# #????????????????????# # ## | | ##??# ##????# #????????????????????### | | #### #?????# #?????????????????????## ## | | ## ##?????# ##?????????????????????# # | | ##??????# ##????????????????????# ## | | ##??????## #????????????????????# #? | | ### ##???????# #??????????# ??????# #? | | ??#### ##????????# #?????????# ???????# #? | | ?????#####?????????## ##???????? #???????# #? | | ????????????????????### ##?????? #???????# #? | | ??????????????????????## ##????? #????????? ?? | | ???????????????????????## #???? ##??##????%?? | | ???????????????????????## #???? ## #???? ?? | | ??????????????????????## ##??# % ?????? ?? | | ?????????????????????## ### s s """?????? ?? | | ????????????????????## u s """?????? ?? | | ????????????????????# """?????? ?? | | ????????????????????# @ #??????? | | ????????????????????# ## #### #??????? | | ????????????????????## #### ##????? ??????????? | | ??????????????????? ???####?????????????????? | | ????????????????? ????????????????????????? | | ????????????????##### ????????????????????????? | | ????????????????????# ????????????????????????? | | ????????????????????## ????????????????????????? | | ?????????????????????####????????????????????????? | | ?????????????????????????????????????????????????? | | ?????????????????????????????????????????????????? | | ?????????????????????????????????????????????????? | | ?????????????????????????????????????????????????? | | ?????????????????????????????????????????????????? | | ?????????????????????????????????????????????????? | | ?????????????????????????????????????????????????? | | ?????????????????????????????????????????????????? | | | | | | | | | | | | | | | | | +----------------------------------------------------+ Best States ------------- Heat Dissipation 25 Energy Generation 14 Energy Capacity 250 Matter Stores 300 Matter Capacity 300 Sight Range 16 Terrain Scan Density 10 Evasion (%) 40 Recoil Reduction 2 Trap Extractor Capacity 6 Item Schematics ----------------- None Robot Schematics ------------------ None Fabricated ------------ Nothing Repaired ---------- Nothing Studied --------- None Alien Tech Used ----------------- None Achievements -------------- System Compromised Challenges ------------ None Game ------ Seed OmegaNetworkMegashotty Manual? 0 Play Time 00:27:59 Cumulative 3.7 hours Start 2025.11.13 @ 23:01:08 End 2025.11.14 @ 01:02:17 Sessions 1 Manual Loads 0 Difficulty Rogue Special Mode None Game No. 6 Rogue 6 Adventurer 0 Explorer 0 Win Type - Total 0 Types 0/0/0/0/0/0/0/0/0/0 Lore% 1 Gallery% 5 Achievement% 5 Wizard Run 0 Options --------- Layout 1 ASCII 0 Keyboard 0 Movement Arrows Keybinds 0 Fullscreen 1 Font 32/SmallcapsGlow Map View 50x35 Zoom Use 81% Tactical HUD 0 Map Filters NONE Filters NONE Steam 1 RUN: 8dec9475-2187-4263-ad4d-9853819b2efb